bitfinex/quotes_SOLUSD_20250226
["timestamp","ask_amount","ask_price","bid_price","bid_amount"]
[1740595215816,1.0,132.85,132.57,12.6776]
[1740595216030,11.41936867,132.84,132.6,20.0]
[1740595216733,5.86966867,132.84,132.6,20.0]
[1740595216936,7.20788053,132.87,132.61,18.64964886]
[1740595217133,7.20788053,132.87,132.65,20.0]
[1740595217329,7.20788053,132.87,132.73,20.0]
[1740595217714,7.20788053,132.87,132.73,136.8]
[1740595217923,7.20788053,132.87,132.7,13.0545]
[1740595218143,7.20788053,132.87,132.73,20.0]
[1740595218440,7.20788053,132.87,132.73,156.8]
[1740595218745,7.20788053,132.87,132.74,18.64964886]
[1740595218931,7.20788053,132.87,132.74,136.8]
[1740595219139,7.20788053,132.87,132.77,20.0]
[1740595219439,0.063,132.91,132.81,20.0]
[1740595219638,0.063,132.91,132.81,156.8]
[1740595219834,0.063,132.91,132.81,136.8]
[1740595220034,0.063,132.91,132.84,20.0]
[1740595220243,0.03,132.94,132.88,20.0]
[1740595220424,0.03,132.94,132.88,156.8]
[1740595220740,0.03,132.94,132.85,149.8267]
[1740595221046,0.03,132.94,132.77,123.53228499]
[1740595221245,0.03,132.94,132.8,20.0]
[1740595221555,21.82584988,133.09,132.89,18.64964886]
[1740595221851,21.82584988,133.09,132.93,20.0]
[1740595222053,21.82584988,133.09,132.97,20.0]
[1740595222221,21.82584988,133.09,132.98,18.64964886]
[1740595222418,14.91574988,133.09,133.01,20.0]
[1740595222643,112.26784324,133.14,133.01,123.53228499]
[1740595222839,92.87004324,133.14,133.02,18.64964886]
[1740595223145,62.84004324,133.14,133.02,142.18193385]
[1740595223443,57.84004324,133.14,133.05,1.0]
[1740595223645,57.84004324,133.14,133.05,152.38789689]
[1740595223646,53.81324324,133.14,133.05,152.38789689]
[1740595223944,7.20788053,133.13,133.05,152.38789689]
[1740595224127,7.20788053,133.13,133.08,20.0]
[1740595224324,7.20788053,133.13,133.08,87.74401048]
[1740595224592,7.20788053,133.13,132.97,289.44119689]
[1740595224730,7.20788053,133.13,132.97,87.74401048]
[1740595224928,7.20788053,133.13,132.89,127.2]
[1740595224929,18.64964886,133.12,132.89,127.2]
[1740595225464,4.00476867,133.12,132.85,9.8533]
[1740595225762,40.47994324,133.14,132.86,0.28432314]
[1740595225921,2.4238444,133.2,132.86,171.32186889]
[1740595226127,2.4238444,133.2,132.93,20.0]
[1740595226339,2.4238444,133.2,132.94,127.22216157]
[1740595226560,2.4238444,133.2,132.95,18.64964886]
[1740595226726,2.4238444,133.2,132.98,20.0]
[1740595226925,2.4238444,133.2,132.99,0.56864628]
[1740595227229,2.4238444,133.2,133.03,0.56864628]
[1740595227535,2.4238444,133.2,133.07,20.0]
[1740595227737,2.4238444,133.2,133.07,87.74401048]
[1740595227936,2.4238444,133.2,133.03,87.74401048]
[1740595228130,2.4238444,133.2,133.03,152.38789689]
[1740595228339,2.4238444,133.2,133.05,0.14216157]
[1740595228660,2.4238444,133.2,133.05,152.38789689]
[1740595229251,2.4238444,133.2,133.09,20.0]
[1740595229557,0.063,133.3,133.09,107.74401048]
[1740595229877,0.063,133.3,133.13,20.0]
[1740595230061,0.063,133.3,133.14,0.14216157]
[1740595230261,0.063,133.3,133.14,87.88617205]
[1740595230565,7.6953,133.45,133.14,87.74401048]
[1740595230873,4.00476867,133.52,133.22,20.0]
[1740595231065,4.00476867,133.52,133.26,20.0]
[1740595231370,7.8817,133.55,133.3,20.0]
[1740595231564,7.8817,133.55,133.33,20.0]
[1740595231769,7.8817,133.55,133.24,0.28432314]
[1740595231940,7.8817,133.55,133.24,0.42648471]
[1740595232140,7.8817,133.55,133.23,126.98]
[1740595232341,20.0,133.52,133.23,126.98]
[1740595232566,20.0,133.52,133.19,87.74401048]
[1740595232769,5.00476867,133.54,133.19,87.74401048]
[1740595232968,20.0,133.37,133.19,87.74401048]
[1740595233264,19.64964886,133.39,133.19,87.74401048]
[1740595233458,1.0,133.36,133.19,87.74401048]
[1740595233666,8.2814,133.37,133.13,87.74401048]
[1740595234049,4.00476867,133.36,133.07,87.74401048]
[1740595234245,4.00476867,133.35,133.07,87.74401048]
[1740595234444,8.2814,133.37,133.07,152.38789689]
[1740595234846,6.9512,133.37,133.09,1.5415]
[1740595235043,5.6195,133.37,133.11,18.64964886]
[1740595235271,13.1927,133.4,133.17,20.0]
[1740595235444,13.1927,133.4,133.17,107.74401048]
[1740595235844,13.1927,133.4,133.17,87.74401048]
[1740595236068,20.0,133.37,133.17,87.74401048]
[1740595236276,20.0,133.29,133.11,87.74401048]
[1740595236764,18.8802,133.29,133.11,87.74401048]
[1740595237074,15.37784886,133.32,133.11,87.74401048]
[1740595237264,17.28346867,133.31,133.04,152.38789689]
[1740595237578,4.00476867,133.4,133.04,152.38789689]
[1740595237745,1.0,133.38,133.04,152.38789689]
[1740595237948,4.00476867,133.39,133.04,152.38789689]
[1740595237949,1.0,133.32,133.04,87.74401048]
[1740595238155,4.00476867,133.31,133.04,87.74401048]
[1740595238357,8.0809,133.34,133.07,20.0]
[1740595238646,8.0809,133.34,133.19,20.0]
[1740595238848,8.0809,133.34,133.2,18.64964886]
[1740595239063,7.5809,133.34,133.2,87.74401048]
[1740595239444,7.5809,133.34,133.12,87.74401048]
[1740595239648,18.64964886,133.33,133.12,87.74401048]
[1740595239979,7.5809,133.34,133.12,152.38789689]
[1740595240151,7.5809,133.34,133.12,87.74401048]
[1740595240358,18.64964886,133.3,133.12,87.74401048]
[1740595240563,19.5,133.29,133.12,87.74401048]
[1740595241053,19.5,133.29,133.08,87.74401048]
[1740595241565,4.00476867,133.31,133.08,87.74401048]
[1740595241767,18.64964886,133.3,133.08,87.74401048]
[1740595241959,19.64964886,133.28,133.01,87.74401048]
[1740595242153,26.39544886,133.26,133.01,87.74401048]
[1740595242355,4.00476867,133.25,133.01,87.74401048]
[1740595242561,18.64964886,133.24,133.01,87.74401048]
[1740595242878,20.0,133.17,133.01,87.74401048]
[1740595243258,18.64964886,133.12,132.96,87.74401048]
[1740595243559,7.7458,133.11,132.96,87.74401048]
[1740595243760,4.7533,133.11,132.96,87.74401048]
[1740595244702,4.7533,133.11,132.9,191.36388641]
[1740595244703,24.7533,133.11,132.9,279.10789689]
[1740595244998,18.64964886,133.06,132.9,214.46401048]
[1740595245288,2.25116867,133.11,132.9,214.46401048]
[1740595245585,2.25116867,133.11,132.96,0.063]
[1740595245790,2.25116867,133.11,133.0,38.64964886]
[1740595245987,13.1796,133.27,133.0,126.39365934]
[1740595246291,13.1796,133.27,133.01,0.14216157]
[1740595246454,13.1796,133.27,133.06,20.0]
[1740595246787,13.0309,133.36,133.1,20.0]
[1740595246990,13.0309,133.36,133.13,0.28432314]
[1740595247151,0.063,133.41,133.19,0.14216157]
[1740595247350,0.063,133.41,133.21,0.14216157]
[1740595247552,0.063,133.41,133.23,0.14216157]
[1740595247751,0.063,133.41,133.25,0.56864628]
[1740595247977,0.063,133.41,133.3,0.14216157]
[1740595248183,0.063,133.41,133.33,20.0]
[1740595248384,0.063,133.41,133.3,18.64964886]
[1740595248886,0.063,133.41,133.29,87.74401048]
[1740595249185,0.063,133.41,133.26,87.74401048]
[1740595249481,0.063,133.41,133.29,20.0]
[1740595249693,0.063,133.41,133.29,107.74401048]
[1740595249983,0.063,133.41,133.37,20.0]
[1740595250380,0.063,133.41,133.4,20.0]
[1740595250577,0.063,133.41,133.3,263.5]
[1740595250964,0.063,133.41,133.33,20.0]
[1740595251355,0.063,133.41,133.3,263.5]
[1740595251356,0.063,133.44,133.38,18.64964886]
[1740595251563,0.063,133.44,133.41,20.0]
[1740595251875,0.03,133.55,133.41,20.0]
[1740595252095,0.03,133.55,133.34,12.1398]
[1740595252289,0.03,133.55,133.3,263.5]
[1740595252570,20.0,133.54,133.3,263.5]
[1740595253073,7.15123822,133.61,133.32,0.42648471]
[1740595253278,7.15123822,133.61,133.36,20.0]
[1740595253780,7.15123822,133.61,133.4,20.0]
[1740595254072,8.15123822,133.61,133.37,18.64964886]
[1740595254252,20.0,133.58,133.37,18.64964886]
[1740595254457,7.15123822,133.61,133.37,18.64964886]
[1740595254673,7.15123822,133.61,133.37,0.42648471]
[1740595254855,8.15123822,133.61,133.36,18.65547688]
[1740595255059,8.15123822,133.61,133.31,136.8]
[1740595255060,1.0,133.55,133.31,136.8]
[1740595255276,21.0,133.57,133.31,136.8]
[1740595255463,20.0,133.57,133.31,136.8]
[1740595255668,7.15123822,133.61,133.31,136.8]
[1740595255980,20.0,133.58,133.31,136.8]
[1740595256174,1.0,133.54,133.31,136.8]
[1740595256369,1.0,133.56,133.31,136.8]
[1740595256569,7.15123822,133.61,133.35,19.07613357]
[1740595256775,1.0,133.59,133.42,20.0]
[1740595256977,20.0,133.58,133.42,20.0]
[1740595257284,7.15123822,133.61,133.46,20.0]
[1740595257486,1.0,133.59,133.34,18.64964886]
[1740595257663,7.15123822,133.61,133.34,18.64964886]
[1740595257664,1.0,133.57,133.34,18.64964886]
[1740595258065,1.0,133.56,133.33,155.45547688]
[1740595258365,1.0,133.53,133.33,136.8]
[1740595258575,1.0,133.54,133.33,136.8]
[1740595258772,1.0,133.56,133.33,136.8]
[1740595258977,21.0,133.57,133.33,136.8]
[1740595259164,21.0,133.57,133.36,20.0]
[1740595259484,20.0,133.57,133.36,20.0]
[1740595259661,21.0,133.57,133.36,20.0]
[1740595259863,1.0,133.57,133.35,126.5]
[1740595260079,8.15123822,133.61,133.38,20.0]
[1740595260275,1.0,133.58,133.38,20.0]
[1740595260469,1.0,133.53,133.35,126.5]
[1740595260872,20.0,133.54,133.38,20.0]
[1740595261079,7.15123822,133.61,133.38,20.0]
[1740595261275,7.15123822,133.61,133.39,18.64964886]
[1740595261471,1.0,133.52,133.35,126.5]
[1740595261675,83.9,133.56,133.35,126.5]
[1740595261885,1.0,133.5,133.35,126.5]
[1740595262180,1.0,133.44,133.27,126.48]
[1740595262481,27.7457,133.46,133.27,126.48]
[1740595262782,13.0064,133.49,133.27,126.48]
[1740595262987,13.0064,133.49,133.3,20.0]
[1740595263185,13.0064,133.49,133.31,39.07613357]
[1740595263391,7.7457,133.54,133.32,0.28432314]
[1740595263679,7.7457,133.54,133.35,0.14216157]
[1740595263881,7.7457,133.54,133.37,0.42648471]
[1740595264087,7.7457,133.54,133.25,12.1357]
[1740595264267,20.0,133.51,133.25,12.1357]
[1740595264469,20.0,133.51,133.29,0.14216157]
[1740595264663,20.0,133.51,133.31,20.0]
[1740595264867,7.7457,133.54,133.37,20.0]
[1740595265067,7.7457,133.54,133.41,20.0]
[1740595265383,21.0,133.51,133.04,50.0]
[1740595265681,7.7457,133.54,133.12,50.0]
[1740595265885,7.7457,133.54,133.35,0.14216157]
[1740595266077,7.7457,133.54,133.29,45.21]
[1740595266286,7.7457,133.54,133.3,0.14216157]
[1740595266487,0.99122663,133.58,133.35,0.14216157]
[1740595266690,0.99122663,133.58,133.34,20.0]
[1740595266988,0.99122663,133.58,133.4,0.14216157]
[1740595267182,1.03,133.66,133.44,20.0]
[1740595267380,1.03,133.66,133.52,20.0]
[1740595267381,0.03,133.66,133.52,20.0]
[1740595267566,0.03,133.66,133.53,18.64964886]
[1740595267772,0.03,133.66,133.57,38.64964886]
[1740595268182,0.03,133.66,133.42,0.42648471]
[1740595268379,0.03,133.66,133.42,45.77864628]
[1740595268775,0.03,133.66,133.49,20.0]
[1740595269281,0.03,133.66,133.5,45.21]
[1740595269579,0.03,133.66,133.53,20.0]
[1740595269785,0.03,133.66,133.61,38.64964886]
[1740595270377,0.03,133.66,133.65,38.64964886]
[1740595270692,0.03,133.66,133.65,37.89338227]
[1740595271190,0.03,133.66,133.57,12.7983]
[1740595271391,0.03,133.66,133.54,0.28432314]
[1740595271590,0.03,133.66,133.52,18.65547688]
[1740595271772,1.0,133.65,133.45,126.36]
[1740595271973,0.03,133.66,133.45,126.36]
[1740595272392,1.0,133.65,133.45,126.36]
[1740595272575,1.0,133.6,133.45,126.36]
[1740595272776,1.0,133.53,133.37,126.36]
[1740595272973,21.0,133.51,133.37,126.36]
[1740595273473,20.0,133.51,133.37,126.36]
[1740595273797,32.6131,133.51,133.37,126.36]
[1740595274302,8.8827,133.54,133.48,20.0]
[1740595274303,7.8827,133.54,133.48,20.0]
[1740595274491,12.5619,133.59,133.52,20.0]
[1740595274801,12.5619,133.59,133.38,45.21]
[1740595275101,1.0,133.54,133.37,126.36]
[1740595275278,1.0,133.49,133.37,126.36]
[1740595275476,1.0,133.49,133.29,126.36]
[1740595275794,1.0,133.46,133.29,126.36]
[1740595275993,20.0,133.44,133.29,263.16]
[1740595276204,20.0,133.39,133.27,136.863]
[1740595276371,1.0,133.37,133.27,0.063]
[1740595276573,1.37512421,133.36,133.27,0.063]
[1740595277287,1.0,133.41,133.28,18.64964886]
[1740595277487,13.2748,133.42,133.31,20.0]
[1740595277684,11.29465194,133.39,133.35,20.0]
[1740595277886,11.29465194,133.39,133.38,20.0]
[1740595278086,11.29465194,133.39,133.36,136.8]
[1740595278291,11.29465194,133.39,133.27,64.70688641]
[1740595278292,11.29465194,133.39,133.27,136.863]
[1740595278681,11.29465194,133.39,133.28,18.64964886]
[1740595278874,20.0,133.36,133.27,0.063]
[1740595279384,1.0,133.33,133.27,0.063]
[1740595279630,20.0,133.31,133.27,0.063]
[1740595279895,1.0,133.25,133.14,136.8]
[1740595280104,1.0,133.23,133.13,126.42]
[1740595280283,1.0,133.2,133.11,0.063]
[1740595280489,1.0,133.17,133.11,0.063]
[1740595280789,20.0,133.16,133.11,0.063]
[1740595281103,1.0,133.11,132.99,136.8]
[1740595281277,1.0,133.13,132.99,136.8]
[1740595281600,1.0,133.09,132.99,136.8]
[1740595281998,1.0,133.15,132.99,136.8]
[1740595282175,1.0,133.13,132.99,136.8]
[1740595282375,1.0,133.11,132.99,136.8]
[1740595282681,1.0,133.08,132.96,263.283]
[1740595282887,1.0,133.07,132.97,136.863]
[1740595283179,20.0,133.05,132.97,0.063]
[1740595283377,20.0,133.05,132.87,263.32]
[1740595283378,20.0,133.0,132.87,263.32]
[1740595283597,1.0,132.99,132.87,263.32]
[1740595283806,20.0,133.0,132.9,20.0]
[1740595284120,12.3413,133.03,132.9,136.8]
[1740595284399,13.3413,133.03,132.9,136.8]
[1740595284636,1.37512421,133.02,132.9,136.8]
[1740595284775,1.37512421,133.02,132.93,20.0]
[1740595284976,8.2257,133.08,132.94,38.64964886]
[1740595285282,12.4275,133.11,132.95,0.42648471]
[1740595285483,1.0,133.12,132.98,20.0]
[1740595285686,7.7579,133.17,132.98,221.44388641]
[1740595285886,1.37512421,133.16,133.02,20.0]
[1740595286085,1.37512421,133.16,133.02,156.8]
[1740595286499,1.37512421,133.16,133.02,221.44388641]
[1740595286719,7.7579,133.17,133.03,2.00416991]
[1740595287001,11.29465194,133.22,133.06,0.14216157]
[1740595287210,11.29465194,133.22,133.1,0.42648471]
[1740595287390,11.29465194,133.22,133.14,20.0]
[1740595287704,11.29465194,133.22,133.15,2.00289078]
[1740595287879,11.29465194,133.22,133.18,20.0]
[1740595288081,11.29465194,133.22,133.18,156.8]
[1740595288288,1.0,133.26,133.18,156.8]
[1740595288500,1.0,133.25,133.11,263.42]
[1740595288713,1.0,133.22,133.11,263.42]
[1740595288918,1.37512421,133.25,133.11,263.42]
[1740595289324,1.0,133.24,133.11,328.06388641]
[1740595289516,2.37512421,133.25,133.11,328.06388641]
[1740595289818,1.0,133.21,133.11,263.42]
[1740595290029,1.0,133.21,133.04,45.21]
[1740595290030,1.0,133.17,133.04,136.8]
[1740595290234,1.0,133.12,133.04,136.8]
[1740595290405,1.0,133.11,133.01,136.8]
[1740595290712,20.0,133.15,133.01,136.8]
[1740595291023,1.37512421,133.16,133.04,20.0]
[1740595291201,1.37512421,133.16,133.04,202.01]
[1740595291394,1.37512421,133.16,133.04,156.8]
[1740595291598,21.0,133.15,133.04,136.8]
[1740595291827,1.37512421,133.16,133.04,201.44388641]
[1740595292002,7.6505,133.18,133.04,246.65388641]
[1740595292199,7.6505,133.18,133.07,20.0]
[1740595292401,7.6505,133.18,133.07,156.8]
[1740595292706,1.0,133.16,133.07,156.8]
[1740595292908,1.0,133.16,133.07,104.36181828]
[1740595293422,7.6505,133.18,133.07,104.36181828]
[1740595293723,12.5269,133.2,133.07,104.36181828]
[1740595293932,7.6161,133.26,133.08,45.21]
[1740595294238,21.0,133.23,133.08,104.36181828]
[1740595294396,1.0,133.16,133.06,104.42481828]
[1740595294595,20.0,133.21,133.06,169.06870469]
[1740595294817,7.6161,133.26,133.09,20.0]
[1740595295121,7.6161,133.26,133.13,65.21]
[1740595295429,7.7452,133.36,133.18,65.21]
[1740595295595,1.37512421,133.35,133.18,234.21570469]
[1740595295796,1.37512421,133.35,133.2,0.56864628]
[1740595295996,7.7452,133.36,133.26,20.0]
[1740595296227,1.37512421,133.35,133.23,104.36181828]
[1740595296724,20.0,133.33,133.2,104.36181828]
[1740595296941,1.0,133.28,133.14,231.02181828]
[1740595297240,1.0,133.22,133.14,126.66]
[1740595297533,1.37512421,133.21,133.09,136.8]
[1740595297705,1.0,133.18,133.06,136.863]
[1740595297908,21.37512421,133.17,133.06,136.863]
[1740595298220,1.37512421,133.16,133.09,20.0]
[1740595298405,1.37512421,133.16,133.09,156.8]
[1740595298721,1.37512421,133.16,133.09,136.8]
[1740595298923,1.37512421,133.16,133.06,136.863]
[1740595299130,1.0,133.15,133.06,0.063]
[1740595299312,1.37512421,133.14,133.06,136.863]
[1740595299638,1.37512421,133.14,133.09,65.21]
[1740595299927,164.41401354,133.33,133.09,266.65388641]
[1740595299928,21.8508,133.28,133.09,266.65388641]
[1740595300222,1.37512421,133.27,133.1,2.14541734]
[1740595300444,1.37512421,133.27,133.14,65.49432314]
[1740595300741,1.0,133.34,133.15,1.57590506]
[1740595300941,1.37512421,133.33,133.17,0.56864628]
[1740595301104,1.37512421,133.33,133.21,0.56864628]
[1740595301302,1.37512421,133.33,133.27,20.0]
[1740595301610,1.0,133.33,133.21,136.8]
[1740595301915,1.37512421,133.32,133.21,136.8]
[1740595302231,1.37512421,133.32,133.24,20.0]
[1740595302406,1.37512421,133.32,133.24,156.8]
[1740595302718,1.0,133.3,133.16,126.64]
[1740595302925,1.0,133.26,133.16,263.44]
[1740595303138,20.0,133.27,133.16,263.44]
[1740595303139,2.37512421,133.25,133.16,126.64]
[1740595303309,1.37512421,133.24,133.08,263.44]
[1740595303508,1.0,133.21,133.08,263.44]
[1740595303707,1.37512421,133.2,133.08,263.44]
[1740595304411,1.0,133.19,133.08,263.44]
[1740595304614,1.37512421,133.2,133.08,263.44]
[1740595304816,1.37512421,133.2,133.12,20.0]
[1740595305009,1.37512421,133.2,133.12,156.8]
[1740595305203,12.9681,133.27,133.12,221.44388641]
[1740595305423,1.37512421,133.26,133.13,1.57644002]
[1740595305947,1.37512421,133.26,133.17,0.56864628]
[1740595306146,1.37512421,133.26,133.21,39.0039722]
[1740595306436,0.03,133.36,133.23,0.42648471]
[1740595306641,0.03,133.36,133.25,0.14216157]
[1740595306847,0.03,133.36,133.26,1.57477214]
[1740595307015,0.03,133.36,133.26,235.81660295]
[1740595307325,0.03,133.36,133.26,201.44388641]
[1740595307521,0.03,133.36,133.26,136.8]
[1740595307710,1.0,133.35,133.26,136.8]
[1740595308033,1.37512421,133.34,133.26,136.8]
[1740595308248,1.37512421,133.34,133.29,20.0]
[1740595308432,1.37512421,133.34,133.29,156.8]
[1740595308814,0.03,133.36,133.29,156.8]
[1740595309033,0.03,133.36,133.29,136.8]
[1740595309510,0.03,133.36,133.32,20.0]
[1740595309744,0.03,133.36,133.32,156.8]
[1740595310942,0.03,133.36,133.33,1.57440968]
[1740595311142,0.03,133.38,133.36,20.0]
[1740595311459,1.40512421,133.52,133.41,20.0]
[1740595311624,1.40512421,133.52,133.42,1.57298791]
[1740595311825,0.03,133.52,133.42,138.34298791]
[1740595312037,0.03,133.52,133.42,202.98687432]
[1740595312328,0.03,133.52,133.42,201.41388641]
[1740595312531,0.03,133.52,133.45,20.0]
[1740595312723,0.03,133.52,133.45,284.84255954]
[1740595312926,0.03,133.52,133.46,1.5723544]
[1740595313232,0.03,133.52,133.46,136.77]
[1740595313757,1.0,133.49,133.45,263.27]
[1740595313923,0.03,133.52,133.45,263.27]
[1740595314239,0.03,133.52,133.48,20.0]
[1740595314432,0.03,133.52,133.48,156.77]
[1740595315234,1.03,133.52,133.48,136.77]
[1740595315424,1.37512421,133.51,133.45,263.27]
[1740595316023,1.37512421,133.51,133.48,20.0]
[1740595316344,0.03,133.52,133.49,1.57282181]
[1740595316546,0.03,133.52,133.51,20.0]
[1740595316730,0.03,133.52,133.51,156.77]
[1740595317162,0.03,133.52,133.51,136.77]
[1740595317666,0.03,133.52,133.45,327.91388641]
[1740595317839,0.03,133.52,133.45,263.27]
[1740595318163,0.03,133.52,133.48,20.0]
[1740595318368,0.03,133.52,133.49,1.57170319]
[1740595318722,0.03,133.52,133.49,138.34170319]
[1740595319142,0.03,133.52,133.49,138.34233803]
[1740595319446,0.03,133.52,133.51,20.0]
[1740595319632,0.03,133.52,133.51,156.77]
[1740595319942,1.10512421,133.61,133.51,136.77]
[1740595320155,1.10512421,133.61,133.45,263.27]
[1740595320659,1.10512421,133.61,133.46,46.7827822]
[1740595320872,1.10512421,133.61,133.46,136.77]
[1740595321040,20.0,133.55,133.37,126.4]
[1740595321242,20.0,133.51,133.37,263.17]
[1740595321645,20.0,133.51,133.34,136.77]
[1740595321844,21.37512421,133.5,133.28,136.77]
[1740595322070,1.37395848,133.49,133.29,1.57484599]
[1740595322240,1.37395848,133.49,133.29,138.34484599]
[1740595322434,1.37395848,133.49,133.29,136.77]
[1740595322640,7.9192,133.48,133.29,136.77]
[1740595322879,96.45750438,133.47,133.26,136.77]
[1740595323034,7.6464,133.45,133.23,136.77]
[1740595323365,1.37166179,133.44,133.23,136.77]
[1740595323662,1.37166179,133.44,133.26,20.0]
[1740595323841,20.0,133.4,133.21,136.833]
[1740595324263,1.37166179,133.44,133.24,20.0]
[1740595324469,1.37512421,133.39,133.26,0.14216157]
[1740595324678,7.6464,133.45,133.3,65.21]
[1740595324834,11.29465194,133.5,133.35,65.21]
[1740595325030,11.29465194,133.5,133.37,0.42648471]
[1740595325255,11.29465194,133.5,133.39,0.14216157]
[1740595325565,11.29465194,133.5,133.43,65.21]
[1740595325766,11.29465194,133.5,133.48,20.0]
[1740595325973,11.29465194,133.5,133.48,268.19604989]
[1740595326183,11.29465194,133.5,133.48,266.62388641]
[1740595326383,8.0589,133.63,133.48,266.62388641]
[1740595326687,1.37512421,133.62,133.48,201.41388641]
[1740595326854,84.27512421,133.62,133.44,263.19]
[1740595327156,20.0,133.58,133.44,126.42]
[1740595327360,20.0,133.54,133.36,126.42]
[1740595327550,8.0589,133.63,133.4,0.56864628]
[1740595327745,9.43402421,133.63,133.42,0.14216157]
[1740595327969,1.37512421,133.62,133.44,0.14216157]
[1740595328166,1.37512421,133.62,133.46,0.14216157]
[1740595328475,1.37512421,133.62,133.51,45.21]
[1740595328652,20.0,133.6,133.51,136.77]
[1740595328858,20.0,133.6,133.49,263.15]
[1740595328859,1.37512421,133.59,133.49,263.15]
[1740595329062,1.37512421,133.59,133.49,327.79388641]
[1740595329364,8.0589,133.63,133.52,20.0]
[1740595329578,8.0589,133.63,133.52,221.41388641]
[1740595329894,20.0,133.6,133.39,126.38]
[1740595330176,1.37512421,133.59,133.4,1.57281252]
[1740595330382,1.37512421,133.59,133.42,20.0]
[1740595330551,1.37512421,133.59,133.43,1.57244018]
[1740595330752,1.37512421,133.59,133.43,201.41388641]
[1740595331572,20.0,133.58,133.43,201.41388641]
[1740595331749,1.37512421,133.57,133.43,201.41388641]
[1740595331945,1.37512421,133.57,133.46,20.0]
[1740595332169,1.37512421,133.57,133.47,1.57265066]
[1740595332474,0.03,133.62,133.47,1.57265066]
[1740595332475,0.03,133.62,133.5,20.0]
[1740595332651,0.03,133.62,133.51,127.91189874]
[1740595333162,1.40512421,133.62,133.54,20.0]
[1740595333356,1.40512421,133.62,133.55,1.57166515]
[1740595333561,0.03,133.62,133.55,202.98555156]
[1740595333764,0.03,133.62,133.56,1.57136529]
[1740595334070,0.03,133.62,133.59,20.0]
[1740595334253,0.03,133.62,133.6,1.5707331]
[1740595335077,0.03,133.66,133.65,20.0]
[1740595335269,0.03,133.66,133.65,222.19800877]
[1740595335466,0.03,133.66,133.65,220.62761982]
[1740595335975,0.03,133.66,133.65,201.38388641]
[1740595336374,0.03,133.66,133.65,136.74]
[1740595336577,1.40512421,133.66,133.56,327.70388641]
[1740595336955,21.3495,133.65,133.56,126.32]
[1740595337163,8.2754,133.65,133.56,327.70388641]
[1740595337365,8.2754,133.65,133.57,1.57115018]
[1740595337572,20.0,133.62,133.57,136.74]
[1740595337875,1.37512421,133.65,133.6,20.0]
[1740595338081,1.37512421,133.65,133.61,1.57081008]
[1740595338477,1.37512421,133.65,133.61,202.95469649]
[1740595338675,0.03,133.66,133.6,136.74]
[1740595338851,1.40512421,133.66,133.6,136.74]
[1740595339268,1.40512421,133.66,133.6,201.38388641]
[1740595339466,1.40512421,133.66,133.61,1.57116127]
[1740595339682,1.40512421,133.66,133.61,136.74]
[1740595340378,1.40512421,133.66,133.56,327.70388641]
[1740595340681,20.0,133.62,133.56,190.96388641]
[1740595340851,20.0,133.62,133.56,126.32]
[1740595341058,20.0,133.61,133.48,126.24]
[1740595341259,20.0,133.58,133.48,327.62388641]
[1740595341875,1.37395848,133.57,133.48,327.62388641]
[1740595342077,1.37395848,133.57,133.49,1.57231664]
[1740595342256,1.37395848,133.57,133.52,20.0]
[1740595342453,12.8529,133.65,133.53,1.57145792]